[Event "Titled Tuesday Blitz November 01 Early 2022"]
[White "Shuvalova, Polina"]
[Black "Schekachikhin, Maksim"]
[WhiteFideId "24171760"]
[BlackFideId "24177830"]
[WhiteElo "2392"]
[BlackElo "2272"]
[Result "0-1"]
[Round "03"]
[TimeControl "180+1"]
[Date "2022.11.02"]
[WhiteClock "0:00:03"]
[BlackClock "0:00:50"]

1. d4 {[%clk 0:03:00]}  Nf6 {[%clk 0:02:58]} 2. Nf3 {[%clk 0:03:01]}  b6 {[%clk 0:02:57]} 3. Bf4 {[%clk 0:02:58]}  Bb7 {[%clk 0:02:57]} 4. e3 {[%clk 0:02:59]}  g6 {[%clk 0:02:57]} 5. Nbd2 {[%clk 0:02:58]}  Bg7 {[%clk 0:02:57]} 6. h3 {[%clk 0:02:58]}  d6 {[%clk 0:02:57]} 7. Bd3 {[%clk 0:02:58]}  O-O {[%clk 0:02:58]} 8. Qe2 {[%clk 0:02:58]}  Nbd7 {[%clk 0:02:57]} 9. Bh2 {[%clk 0:02:58]}  Re8 {[%clk 0:02:55]} 10. e4 {[%clk 0:02:58]}  e5 {[%clk 0:02:54]} 11. dxe5 {[%clk 0:02:53]}  dxe5 {[%clk 0:02:51]} 12. O-O-O {[%clk 0:02:50]}  Qe7 {[%clk 0:02:50]} 13. g4 {[%clk 0:02:41]}  Nc5 {[%clk 0:02:37]} 14. Bxe5 {[%clk 0:02:31]}  Nfxe4 {[%clk 0:02:30]} 15. Bxg7 {[%clk 0:02:19]}  Nxd2 {[%clk 0:02:23]} 16. Qxe7 {[%clk 0:01:38]}  Rxe7 {[%clk 0:02:20]} 17. Nxd2 {[%clk 0:01:31]}  Nxd3+ {[%clk 0:02:15]} 18. cxd3 {[%clk 0:01:32]}  Bxh1 {[%clk 0:02:07]} 19. Bc3 {[%clk 0:01:25]}  Bd5 {[%clk 0:02:05]} 20. f4 {[%clk 0:01:22]}  Rae8 {[%clk 0:02:03]} 21. Nc4 {[%clk 0:01:15]}  Bxc4 {[%clk 0:01:30]} 22. dxc4 {[%clk 0:01:16]}  Re4 {[%clk 0:01:30]} 23. f5 {[%clk 0:01:05]}  Rxc4 {[%clk 0:01:28]} 24. Rd7 {[%clk 0:01:02]}  b5 {[%clk 0:01:26]} 25. Kd2 {[%clk 0:01:00]}  a5 {[%clk 0:01:25]} 26. b3 {[%clk 0:00:54]}  Rc6 {[%clk 0:01:25]} 27. Bxa5 {[%clk 0:00:48]}  Rd6+ {[%clk 0:01:25]} 28. Rxd6 {[%clk 0:00:48]}  cxd6 {[%clk 0:01:26]} 29. Kc3 {[%clk 0:00:44]}  gxf5 {[%clk 0:01:22]} 30. gxf5 {[%clk 0:00:43]}  Re5 {[%clk 0:01:23]} 31. f6 {[%clk 0:00:41]}  Rh5 {[%clk 0:01:23]} 32. Kb4 {[%clk 0:00:40]}  Kf8 {[%clk 0:01:18]} 33. Bc7 {[%clk 0:00:36]}  Ke8 {[%clk 0:01:17]} 34. Bxd6 {[%clk 0:00:36]}  Kd7 {[%clk 0:01:18]} 35. Be7 {[%clk 0:00:29]}  Kc6 {[%clk 0:01:18]} 36. a4 {[%clk 0:00:28]}  bxa4 {[%clk 0:01:17]} 37. bxa4 {[%clk 0:00:29]}  Rxh3 {[%clk 0:01:18]} 38. a5 {[%clk 0:00:24]}  Rh4+ {[%clk 0:01:17]} 39. Kc3 {[%clk 0:00:24]}  Kb5 {[%clk 0:01:17]} 40. Bd8 {[%clk 0:00:25]}  Re4 {[%clk 0:01:15]} 41. Kd3 {[%clk 0:00:23]}  Re6 {[%clk 0:01:15]} 42. Bc7 {[%clk 0:00:15]}  h5 {[%clk 0:01:13]} 43. Bg3 {[%clk 0:00:15]}  Kxa5 {[%clk 0:01:12]} 44. Kd4 {[%clk 0:00:15]}  Kb5 {[%clk 0:01:12]} 45. Kd5 {[%clk 0:00:15]}  Kb4 {[%clk 0:01:10]} 46. Kd4 {[%clk 0:00:14]}  Kb3 {[%clk 0:01:04]} 47. Kd3 {[%clk 0:00:15]}  Rxf6 {[%clk 0:01:04]} 48. Ke4 {[%clk 0:00:14]}  Kc4 {[%clk 0:01:04]} 49. Bh4 {[%clk 0:00:14]}  Rf1 {[%clk 0:01:02]} 50. Ke3 {[%clk 0:00:14]}  Kd5 {[%clk 0:01:02]} 51. Ke2 {[%clk 0:00:15]}  Rf5 {[%clk 0:01:02]} 52. Ke3 {[%clk 0:00:14]}  Ke6 {[%clk 0:01:00]} 53. Ke4 {[%clk 0:00:14]}  Ra5 {[%clk 0:01:00]} 54. Ke3 {[%clk 0:00:14]}  Kf5 {[%clk 0:01:00]} 55. Kf3 {[%clk 0:00:15]}  Ra3+ {[%clk 0:00:59]} 56. Kg2 {[%clk 0:00:15]}  Kg4 {[%clk 0:01:00]} 57. Bf2 {[%clk 0:00:16]}  Ra2 {[%clk 0:00:59]} 58. Kg1 {[%clk 0:00:16]}  h4 {[%clk 0:00:57]} 59. Bd4 {[%clk 0:00:15]}  h3 {[%clk 0:00:56]} 60. Be5 {[%clk 0:00:15]}  f5 {[%clk 0:00:56]} 61. Bc7 {[%clk 0:00:15]}  f4 {[%clk 0:00:56]} 62. Bd6 {[%clk 0:00:13]}  Kg3 {[%clk 0:00:56]} 63. Be5 {[%clk 0:00:14]}  Re2 {[%clk 0:00:52]} 64. Bc3 {[%clk 0:00:13]}  Rc2 {[%clk 0:00:51]} 65. Be1+ {[%clk 0:00:12]}  Kf3 {[%clk 0:00:52]} 66. Kh1 {[%clk 0:00:03]}  Rc1 {[%clk 0:00:50]} 67. Kh2 {[%clk 0:00:03]}  Rxe1 {[%clk 0:00:50]} 0-1


[Site "https://www.chess.com"]

[Event "Titled Tuesday Blitz November 01 Early 2022"]
[White "Sokolovsky, Yahli"]
[Black "Bashirli, Saadat"]
[WhiteFideId "2820242"]
[BlackFideId "13429990"]
[WhiteElo "2316"]
[BlackElo "1408"]
[Result "1-0"]
[Round "03"]
[TimeControl "180+1"]
[Date "2022.11.02"]
[WhiteClock "0:00:33"]
[BlackClock "0:00:13"]

1. b3 {[%clk 0:03:00]}  d5 {[%clk 0:02:59]} 2. e3 {[%clk 0:02:57]}  c5 {[%clk 0:02:58]} 3. Bb2 {[%clk 0:02:53]}  Nc6 {[%clk 0:02:58]} 4. Nf3 {[%clk 0:02:47]}  Bg4 {[%clk 0:02:52]} 5. Bb5 {[%clk 0:02:43]}  e6 {[%clk 0:02:47]} 6. h3 {[%clk 0:02:43]}  Bxf3 {[%clk 0:02:46]} 7. Qxf3 {[%clk 0:02:42]}  Nf6 {[%clk 0:02:46]} 8. O-O {[%clk 0:02:31]}  Bd6 {[%clk 0:02:44]} 9. Bxc6+ {[%clk 0:02:29]}  bxc6 {[%clk 0:02:44]} 10. d3 {[%clk 0:02:30]}  O-O {[%clk 0:02:43]} 11. Nd2 {[%clk 0:02:30]}  e5 {[%clk 0:02:43]} 12. e4 {[%clk 0:02:27]}  Re8 {[%clk 0:02:42]} 13. Rfe1 {[%clk 0:02:27]}  Qc7 {[%clk 0:02:41]} 14. Re2 {[%clk 0:02:25]}  Re7 {[%clk 0:02:37]} 15. Rae1 {[%clk 0:02:24]}  Rae8 {[%clk 0:02:36]} 16. a4 {[%clk 0:02:23]}  h6 {[%clk 0:02:25]} 17. Nf1 {[%clk 0:02:23]}  Re6 {[%clk 0:02:16]} 18. Ne3 {[%clk 0:02:21]}  d4 {[%clk 0:02:11]} 19. Nc4 {[%clk 0:02:19]}  Nh7 {[%clk 0:02:10]} 20. Bc1 {[%clk 0:02:18]}  Rf6 {[%clk 0:02:09]} 21. Qg3 {[%clk 0:02:18]}  Rg6 {[%clk 0:02:09]} 22. Qh2 {[%clk 0:02:18]}  Nf6 {[%clk 0:02:06]} 23. Kh1 {[%clk 0:02:15]}  Qe7 {[%clk 0:01:57]} 24. g4 {[%clk 0:02:04]}  Nh7 {[%clk 0:01:53]} 25. f4 {[%clk 0:01:58]}  exf4 {[%clk 0:01:38]} 26. e5 {[%clk 0:01:58]}  Bb8 {[%clk 0:01:38]} 27. Bxf4 {[%clk 0:01:58]}  Qe6 {[%clk 0:01:33]} 28. Qg2 {[%clk 0:01:51]}  Nf8 {[%clk 0:01:24]} 29. Nd6 {[%clk 0:01:50]}  Rd8 {[%clk 0:01:21]} 30. Qxc6 {[%clk 0:01:48]}  Nd7 {[%clk 0:01:17]} 31. Qf3 {[%clk 0:01:27]}  Nb6 {[%clk 0:01:08]} 32. Nf5 {[%clk 0:01:20]}  Nd5 {[%clk 0:01:06]} 33. Bd2 {[%clk 0:01:20]}  Bc7 {[%clk 0:01:01]} 34. Nh4 {[%clk 0:01:18]}  Rf8 {[%clk 0:00:48]} 35. Rf1 {[%clk 0:01:16]}  Ne7 {[%clk 0:00:34]} 36. Nxg6 {[%clk 0:01:04]}  Nxg6 {[%clk 0:00:35]} 37. Qf5 {[%clk 0:01:04]}  Qd5+ {[%clk 0:00:30]} 38. Qe4 {[%clk 0:01:04]}  Qe6 {[%clk 0:00:27]} 39. Bf4 {[%clk 0:01:03]}  Rb8 {[%clk 0:00:21]} 40. Bg3 {[%clk 0:00:57]}  Re8 {[%clk 0:00:18]} 41. Ref2 {[%clk 0:00:51]}  Rf8 {[%clk 0:00:17]} 42. Kg1 {[%clk 0:00:44]}  Ne7 {[%clk 0:00:17]} 43. Qb7 {[%clk 0:00:38]}  Nd5 {[%clk 0:00:16]} 44. Rf5 {[%clk 0:00:36]}  Ne3 {[%clk 0:00:14]} 45. Qxc7 {[%clk 0:00:33]}  Nxf1 {[%clk 0:00:13]} 46. Rxf1 {[%clk 0:00:33]}  a6 {[%clk 0:00:09]} 47. Qd6 {[%clk 0:00:31]}  Qc8 {[%clk 0:00:08]} 48. e6 {[%clk 0:00:27]}  fxe6 {[%clk 0:00:05]} 49. Rxf8+ {[%clk 0:00:27]}  Qxf8 {[%clk 0:00:05]} 50. Qxf8+ {[%clk 0:00:28]}  Kxf8 {[%clk 0:00:06]} 51. Bd6+ {[%clk 0:00:29]}  Kf7 {[%clk 0:00:07]} 52. Bxc5 {[%clk 0:00:29]}  Kf6 {[%clk 0:00:07]} 53. Bxd4+ {[%clk 0:00:29]}  e5 {[%clk 0:00:07]} 54. Bc3 {[%clk 0:00:30]}  Ke6 {[%clk 0:00:08]} 55. Kf2 {[%clk 0:00:30]}  g6 {[%clk 0:00:08]} 56. Ke3 {[%clk 0:00:31]}  g5 {[%clk 0:00:09]} 57. Ke4 {[%clk 0:00:31]}  Kd6 {[%clk 0:00:10]} 58. Bxe5+ {[%clk 0:00:32]}  Kc5 {[%clk 0:00:11]} 59. Bg7 {[%clk 0:00:32]}  Kb4 {[%clk 0:00:12]} 60. Bxh6 {[%clk 0:00:33]}  Ka3 {[%clk 0:00:13]} 1-0


[Site "https://www.chess.com"]

[Event "Titled Tuesday Blitz November 01 Early 2022"]
[White "Sourath Biswas"]
[Black "Brown, Andrew"]
[WhiteFideId "35091484"]
[BlackFideId "3206513"]
[WhiteElo "2164"]
[BlackElo "2245"]
[Result "1-0"]
[Round "03"]
[TimeControl "180+1"]
[Date "2022.11.02"]
[WhiteClock "0:02:10"]
[BlackClock "0:00:28"]

1. d4 {[%clk 0:03:00]}  g6 {[%clk 0:03:00]} 2. e4 {[%clk 0:02:59]}  Bg7 {[%clk 0:03:00]} 3. Bf4 {[%clk 0:02:59]}  c6 {[%clk 0:02:57]} 4. Nf3 {[%clk 0:02:58]}  d5 {[%clk 0:02:57]} 5. Nc3 {[%clk 0:02:58]}  dxe4 {[%clk 0:02:54]} 6. Nxe4 {[%clk 0:02:58]}  Nf6 {[%clk 0:02:50]} 7. Bd3 {[%clk 0:02:59]}  Nxe4 {[%clk 0:02:46]} 8. Bxe4 {[%clk 0:02:59]}  Nd7 {[%clk 0:02:46]} 9. c3 {[%clk 0:03:00]}  O-O {[%clk 0:02:42]} 10. O-O {[%clk 0:03:00]}  Qb6 {[%clk 0:02:26]} 11. Rb1 {[%clk 0:02:55]}  Nf6 {[%clk 0:02:24]} 12. Bc2 {[%clk 0:02:54]}  Nd5 {[%clk 0:02:12]} 13. Bd2 {[%clk 0:02:54]}  Bg4 {[%clk 0:02:00]} 14. h3 {[%clk 0:02:52]}  Bxf3 {[%clk 0:01:59]} 15. Qxf3 {[%clk 0:02:53]}  e5 {[%clk 0:01:59]} 16. dxe5 {[%clk 0:02:47]}  Bxe5 {[%clk 0:01:58]} 17. Bh6 {[%clk 0:02:47]}  Rfe8 {[%clk 0:01:35]} 18. Bb3 {[%clk 0:02:47]}  Rad8 {[%clk 0:01:18]} 19. Rfe1 {[%clk 0:02:45]}  Qc7 {[%clk 0:01:04]} 20. Rbd1 {[%clk 0:02:42]}  Bh2+ {[%clk 0:00:33]} 21. Kf1 {[%clk 0:02:38]}  Rxe1+ {[%clk 0:00:32]} 22. Rxe1 {[%clk 0:02:39]}  Be5 {[%clk 0:00:30]} 23. Rd1 {[%clk 0:02:11]}  Qd6 {[%clk 0:00:28]} 24. c4 {[%clk 0:02:10]} 1-0


[Site "https://www.chess.com"]

[Event "Titled Tuesday Blitz November 01 Early 2022"]
[White "Stribuk, Artiom"]
[Black "Nozdrachev, Leonid"]
[WhiteFideId "13515659"]
[BlackFideId "24113433"]
[WhiteElo "2279"]
[BlackElo "2249"]
[Result "1-0"]
[Round "03"]
[TimeControl "180+1"]
[Date "2022.11.02"]
[WhiteClock "0:00:32"]
[BlackClock "0:00:04"]

1. d4 {[%clk 0:03:00]}  Nf6 {[%clk 0:02:30]} 2. c4 {[%clk 0:03:00]}  e6 {[%clk 0:02:25]} 3. g3 {[%clk 0:03:00]}  c5 {[%clk 0:02:24]} 4. Nf3 {[%clk 0:02:58]}  g6 {[%clk 0:02:17]} 5. Bg2 {[%clk 0:02:53]}  cxd4 {[%clk 0:02:14]} 6. Nxd4 {[%clk 0:02:50]}  Bg7 {[%clk 0:02:15]} 7. O-O {[%clk 0:02:50]}  O-O {[%clk 0:02:14]} 8. e4 {[%clk 0:02:38]}  d6 {[%clk 0:02:09]} 9. Nc3 {[%clk 0:02:37]}  Nc6 {[%clk 0:02:07]} 10. Be3 {[%clk 0:02:22]}  Ng4 {[%clk 0:01:56]} 11. Qxg4 {[%clk 0:02:10]}  Nxd4 {[%clk 0:01:52]} 12. Qd1 {[%clk 0:02:02]}  Qb6 {[%clk 0:01:49]} 13. Rc1 {[%clk 0:01:59]}  Bd7 {[%clk 0:01:38]} 14. b3 {[%clk 0:01:54]}  Bc6 {[%clk 0:01:32]} 15. Qd3 {[%clk 0:01:48]}  e5 {[%clk 0:01:13]} 16. Rfd1 {[%clk 0:01:41]}  Qa5 {[%clk 0:01:06]} 17. Bxd4 {[%clk 0:01:41]}  exd4 {[%clk 0:01:07]} 18. Ne2 {[%clk 0:01:35]}  Rfe8 {[%clk 0:00:57]} 19. Rc2 {[%clk 0:01:11]}  f5 {[%clk 0:00:37]} 20. exf5 {[%clk 0:01:04]}  Bxg2 {[%clk 0:00:37]} 21. Kxg2 {[%clk 0:01:04]}  Qxf5 {[%clk 0:00:20]} 22. Qxf5 {[%clk 0:01:02]}  gxf5 {[%clk 0:00:21]} 23. Nxd4 {[%clk 0:01:03]}  Bxd4 {[%clk 0:00:20]} 24. Rxd4 {[%clk 0:01:04]}  Re6 {[%clk 0:00:19]} 25. Rd5 {[%clk 0:01:04]}  Rf6 {[%clk 0:00:17]} 26. Rcd2 {[%clk 0:00:59]}  Re8 {[%clk 0:00:13]} 27. Rxd6 {[%clk 0:00:57]}  Rxd6 {[%clk 0:00:14]} 28. Rxd6 {[%clk 0:00:58]}  Re2 {[%clk 0:00:15]} 29. Rd8+ {[%clk 0:00:58]}  Kf7 {[%clk 0:00:15]} 30. Rd7+ {[%clk 0:00:58]}  Kg6 {[%clk 0:00:13]} 31. Rxb7 {[%clk 0:00:58]}  Rxa2 {[%clk 0:00:12]} 32. b4 {[%clk 0:00:56]}  Rc2 {[%clk 0:00:12]} 33. c5 {[%clk 0:00:55]}  a5 {[%clk 0:00:12]} 34. bxa5 {[%clk 0:00:55]}  Rxc5 {[%clk 0:00:12]} 35. a6 {[%clk 0:00:55]}  Ra5 {[%clk 0:00:13]} 36. a7 {[%clk 0:00:56]}  Ra3 {[%clk 0:00:12]} 37. h3 {[%clk 0:00:52]}  h6 {[%clk 0:00:11]} 38. Rc7 {[%clk 0:00:51]}  Kg5 {[%clk 0:00:10]} 39. f4+ {[%clk 0:00:47]}  Kg6 {[%clk 0:00:09]} 40. g4 {[%clk 0:00:47]}  h5 {[%clk 0:00:06]} 41. g5 {[%clk 0:00:45]}  h4 {[%clk 0:00:05]} 42. Kf2 {[%clk 0:00:40]}  Kh5 {[%clk 0:00:04]} 43. Ke2 {[%clk 0:00:33]}  Ra6 {[%clk 0:00:04]} 44. Rh7+ {[%clk 0:00:31]}  Kg6 {[%clk 0:00:03]} 45. Rh6+ {[%clk 0:00:32]}  Kg7 {[%clk 0:00:04]} 46. Rxa6 {[%clk 0:00:32]} 1-0


[Site "https://www.chess.com"]

[Event "Titled Tuesday Blitz November 01 Early 2022"]
[White "Suleymanli, Suleyman"]
[Black "Vovk, Orest"]
[WhiteFideId "13416375"]
[BlackFideId "14113490"]
[WhiteElo "2204"]
[BlackElo "2215"]
[Result "1-0"]
[Round "03"]
[TimeControl "180+1"]
[Date "2022.11.02"]
[WhiteClock "0:00:59"]
[BlackClock "0:00:02"]

1. d4 {[%clk 0:03:00]}  e5 {[%clk 0:02:46]} 2. dxe5 {[%clk 0:02:59]}  Nc6 {[%clk 0:02:41]} 3. Nf3 {[%clk 0:02:59]}  Qe7 {[%clk 0:02:41]} 4. Nc3 {[%clk 0:02:59]}  Nxe5 {[%clk 0:02:40]} 5. Nd5 {[%clk 0:02:59]}  Nxf3+ {[%clk 0:02:41]} 6. gxf3 {[%clk 0:03:00]}  Qd8 {[%clk 0:02:41]} 7. Bf4 {[%clk 0:02:53]}  d6 {[%clk 0:02:39]} 8. Qd3 {[%clk 0:02:53]}  Ne7 {[%clk 0:02:36]} 9. O-O-O {[%clk 0:02:50]}  Nxd5 {[%clk 0:02:33]} 10. Qxd5 {[%clk 0:02:51]}  Be6 {[%clk 0:02:33]} 11. Qxb7 {[%clk 0:02:51]}  Be7 {[%clk 0:02:31]} 12. Be5 {[%clk 0:02:41]}  O-O {[%clk 0:02:26]} 13. Bc3 {[%clk 0:02:41]}  Bf6 {[%clk 0:02:20]} 14. Qb4 {[%clk 0:02:26]}  Rb8 {[%clk 0:02:12]} 15. Bxf6 {[%clk 0:02:26]}  Qxf6 {[%clk 0:02:07]} 16. Qd4 {[%clk 0:02:26]}  Qh6+ {[%clk 0:02:01]} 17. e3 {[%clk 0:02:26]}  Bxa2 {[%clk 0:01:57]} 18. Qxa7 {[%clk 0:02:24]}  Be6 {[%clk 0:01:50]} 19. Qxc7 {[%clk 0:02:15]}  Rfc8 {[%clk 0:01:40]} 20. Qxd6 {[%clk 0:02:15]}  Ra8 {[%clk 0:01:28]} 21. Bd3 {[%clk 0:02:12]}  Qf6 {[%clk 0:01:22]} 22. Qd4 {[%clk 0:02:06]}  Qxf3 {[%clk 0:01:20]} 23. Qf4 {[%clk 0:01:46]}  Qb7 {[%clk 0:00:53]} 24. Qe4 {[%clk 0:01:36]}  Ra1+ {[%clk 0:00:38]} 25. Kd2 {[%clk 0:01:35]}  Rxd1+ {[%clk 0:00:37]} 26. Rxd1 {[%clk 0:01:36]}  Qxb2 {[%clk 0:00:38]} 27. Qxh7+ {[%clk 0:01:35]}  Kf8 {[%clk 0:00:38]} 28. Ke2 {[%clk 0:01:33]}  Bg4+ {[%clk 0:00:28]} 29. f3 {[%clk 0:01:32]}  Be6 {[%clk 0:00:20]} 30. Rg1 {[%clk 0:01:29]}  g6 {[%clk 0:00:10]} 31. h4 {[%clk 0:01:23]}  Rc3 {[%clk 0:00:08]} 32. Qh6+ {[%clk 0:01:07]}  Ke8 {[%clk 0:00:06]} 33. Qh8+ {[%clk 0:01:00]}  Ke7 {[%clk 0:00:05]} 34. Qd4 {[%clk 0:01:01]}  Rxc2+ {[%clk 0:00:04]} 35. Bxc2 {[%clk 0:01:02]}  Qxc2+ {[%clk 0:00:05]} 36. Qd2 {[%clk 0:01:02]}  Bc4+ {[%clk 0:00:05]} 37. Ke1 {[%clk 0:01:02]}  Qb1+ {[%clk 0:00:05]} 38. Kf2 {[%clk 0:01:02]}  Qf5 {[%clk 0:00:05]} 39. Qb4+ {[%clk 0:00:59]}  Kf6 {[%clk 0:00:02]} 1-0


[Site "https://www.chess.com"]

[Event "Titled Tuesday Blitz November 01 Early 2022"]
[White "Terzi, Alexei"]
[Black "Karas, Marek"]
[WhiteFideId "13505076"]
[BlackFideId "14928558"]
[WhiteElo "2172"]
[BlackElo "2220"]
[Result "1/2-1/2"]
[Round "03"]
[TimeControl "180+1"]
[Date "2022.11.02"]
[WhiteClock "0:00:03"]
[BlackClock "0:00:04"]

1. e4 {[%clk 0:03:00]}  e6 {[%clk 0:02:59]} 2. d4 {[%clk 0:03:00]}  d5 {[%clk 0:02:59]} 3. e5 {[%clk 0:03:01]}  c5 {[%clk 0:03:00]} 4. c3 {[%clk 0:03:02]}  Nc6 {[%clk 0:03:00]} 5. Nf3 {[%clk 0:03:02]}  Qb6 {[%clk 0:03:00]} 6. a3 {[%clk 0:03:03]}  c4 {[%clk 0:02:59]} 7. Nbd2 {[%clk 0:03:02]}  f6 {[%clk 0:02:58]} 8. Be2 {[%clk 0:02:45]}  fxe5 {[%clk 0:02:54]} 9. Nxe5 {[%clk 0:02:44]}  Nxe5 {[%clk 0:02:55]} 10. dxe5 {[%clk 0:02:45]}  Bc5 {[%clk 0:02:55]} 11. O-O {[%clk 0:02:45]}  Ne7 {[%clk 0:02:54]} 12. Bh5+ {[%clk 0:02:39]}  g6 {[%clk 0:02:44]} 13. Bg4 {[%clk 0:02:38]}  O-O {[%clk 0:02:40]} 14. Nf3 {[%clk 0:02:36]}  Bd7 {[%clk 0:02:32]} 15. Qe2 {[%clk 0:02:28]}  Nf5 {[%clk 0:02:24]} 16. Bg5 {[%clk 0:02:09]}  Bb5 {[%clk 0:01:46]} 17. a4 {[%clk 0:01:57]}  Bc6 {[%clk 0:01:41]} 18. Bf6 {[%clk 0:01:38]}  Qc7 {[%clk 0:01:32]} 19. Bxf5 {[%clk 0:01:34]}  gxf5 {[%clk 0:01:22]} 20. Nd4 {[%clk 0:01:29]}  Bxd4 {[%clk 0:01:19]} 21. cxd4 {[%clk 0:01:30]}  Qf7 {[%clk 0:01:10]} 22. Ra3 {[%clk 0:01:28]}  h6 {[%clk 0:00:54]} 23. Rg3+ {[%clk 0:01:26]}  Kh7 {[%clk 0:00:55]} 24. Rg7+ {[%clk 0:01:22]}  Qxg7 {[%clk 0:00:55]} 25. Bxg7 {[%clk 0:01:20]}  Kxg7 {[%clk 0:00:56]} 26. Ra1 {[%clk 0:01:17]}  a5 {[%clk 0:00:53]} 27. Ra3 {[%clk 0:01:14]}  Kh7 {[%clk 0:00:53]} 28. Qd2 {[%clk 0:00:58]}  Rg8 {[%clk 0:00:48]} 29. g3 {[%clk 0:00:49]}  b6 {[%clk 0:00:47]} 30. Qd1 {[%clk 0:00:34]}  Rac8 {[%clk 0:00:42]} 31. Rf3 {[%clk 0:00:34]}  Be8 {[%clk 0:00:39]} 32. Rf4 {[%clk 0:00:33]}  Rc7 {[%clk 0:00:34]} 33. Rh4 {[%clk 0:00:32]}  Rg5 {[%clk 0:00:28]} 34. Qd2 {[%clk 0:00:29]}  Kg7 {[%clk 0:00:26]} 35. Qc2 {[%clk 0:00:29]}  Kh7 {[%clk 0:00:23]} 36. Qc1 {[%clk 0:00:24]}  Kg7 {[%clk 0:00:22]} 37. Rxh6 {[%clk 0:00:23]}  Kxh6 {[%clk 0:00:22]} 38. h4 {[%clk 0:00:23]}  Rg7 {[%clk 0:00:22]} 39. hxg5+ {[%clk 0:00:22]}  Rxg5 {[%clk 0:00:23]} 40. Kg2 {[%clk 0:00:20]}  Kg6 {[%clk 0:00:22]} 41. Qd1 {[%clk 0:00:17]}  Rg4 {[%clk 0:00:21]} 42. f4 {[%clk 0:00:16]}  Kg7 {[%clk 0:00:18]} 43. b3 {[%clk 0:00:14]}  Bc6 {[%clk 0:00:15]} 44. Qc2 {[%clk 0:00:12]}  Rg6 {[%clk 0:00:13]} 45. Qc3 {[%clk 0:00:08]}  Rh6 {[%clk 0:00:12]} 46. b4 {[%clk 0:00:07]}  Bxa4 {[%clk 0:00:09]} 47. bxa5 {[%clk 0:00:08]}  bxa5 {[%clk 0:00:10]} 48. Qxa5 {[%clk 0:00:08]}  Be8 {[%clk 0:00:09]} 49. Qc7+ {[%clk 0:00:08]}  Bf7 {[%clk 0:00:09]} 50. Qc8 {[%clk 0:00:08]}  Rh8 {[%clk 0:00:09]} 51. Qd7 {[%clk 0:00:07]}  Rh6 {[%clk 0:00:07]} 52. Qe7 {[%clk 0:00:07]}  Rg6 {[%clk 0:00:04]} 53. Kf2 {[%clk 0:00:05]}  Rh6 {[%clk 0:00:04]} 54. Kg2 {[%clk 0:00:03]}  Rg6 {[%clk 0:00:04]} 55. Qd7 {[%clk 0:00:02]}  Rh6 {[%clk 0:00:04]} 56. Qc7 {[%clk 0:00:03]}  Rg6 {[%clk 0:00:05]} 57. Qc8 {[%clk 0:00:03]}  Rh6 {[%clk 0:00:05]} 58. Qd8 {[%clk 0:00:03]}  Rg6 {[%clk 0:00:05]} 59. Qh4 {[%clk 0:00:03]}  Rh6 {[%clk 0:00:05]} 60. Qd8 {[%clk 0:00:04]}  Rg6 {[%clk 0:00:06]} 61. Qb6 {[%clk 0:00:04]}  Rh6 {[%clk 0:00:06]} 62. Qc5 {[%clk 0:00:04]}  Rg6 {[%clk 0:00:06]} 63. Kf2 {[%clk 0:00:05]}  Rh6 {[%clk 0:00:06]} 64. Qc7 {[%clk 0:00:06]}  Rh2+ {[%clk 0:00:04]} 65. Kg1 {[%clk 0:00:04]}  Rh3 {[%clk 0:00:04]} 66. Kg2 {[%clk 0:00:04]}  Rh6 {[%clk 0:00:04]} 67. Qd8 {[%clk 0:00:03]} 1/2-1/2


[Site "https://www.chess.com"]

[Event "Titled Tuesday Blitz November 01 Early 2022"]
[White "Tleptsok, Ruslan"]
[Black "Chernov, Mikhail"]
[WhiteFideId "24104485"]
[BlackFideId "24143170"]
[WhiteElo "2130"]
[BlackElo "2113"]
[Result "1-0"]
[Round "03"]
[TimeControl "180+1"]
[Date "2022.11.02"]
[WhiteClock "0:01:46"]
[BlackClock "0:00:03"]

1. e4 {[%clk 0:03:00]}  c5 {[%clk 0:03:00]} 2. Nf3 {[%clk 0:02:59]}  Nc6 {[%clk 0:03:00]} 3. c3 {[%clk 0:02:59]}  Nf6 {[%clk 0:03:00]} 4. e5 {[%clk 0:02:59]}  Nd5 {[%clk 0:03:01]} 5. d4 {[%clk 0:03:00]}  cxd4 {[%clk 0:03:01]} 6. Bc4 {[%clk 0:03:00]}  Nb6 {[%clk 0:03:00]} 7. Bb3 {[%clk 0:03:01]}  d5 {[%clk 0:03:01]} 8. exd6 {[%clk 0:03:00]}  Qxd6 {[%clk 0:03:01]} 9. O-O {[%clk 0:02:59]}  Be6 {[%clk 0:03:02]} 10. Na3 {[%clk 0:03:00]}  g6 {[%clk 0:02:52]} 11. Nb5 {[%clk 0:02:58]}  Qd7 {[%clk 0:02:52]} 12. Bxe6 {[%clk 0:02:56]}  fxe6 {[%clk 0:02:51]} 13. Re1 {[%clk 0:02:53]}  Bg7 {[%clk 0:02:49]} 14. Rxe6 {[%clk 0:02:47]}  O-O {[%clk 0:02:47]} 15. Re1 {[%clk 0:02:44]}  e5 {[%clk 0:02:43]} 16. Qb3+ {[%clk 0:02:42]}  Kh8 {[%clk 0:02:38]} 17. Nxa7 {[%clk 0:02:40]}  Nd5 {[%clk 0:02:04]} 18. Nxc6 {[%clk 0:02:38]}  bxc6 {[%clk 0:02:04]} 19. cxd4 {[%clk 0:02:33]}  exd4 {[%clk 0:02:00]} 20. Bg5 {[%clk 0:02:25]}  Nf4 {[%clk 0:01:27]} 21. Bxf4 {[%clk 0:02:22]}  Rxf4 {[%clk 0:01:28]} 22. a4 {[%clk 0:02:21]}  c5 {[%clk 0:01:21]} 23. a5 {[%clk 0:02:18]}  d3 {[%clk 0:01:19]} 24. a6 {[%clk 0:02:18]}  Rb4 {[%clk 0:01:10]} 25. Qd1 {[%clk 0:02:16]}  Rxb2 {[%clk 0:01:05]} 26. Ne5 {[%clk 0:02:11]}  Bxe5 {[%clk 0:01:00]} 27. Rxe5 {[%clk 0:02:11]}  Rxf2 {[%clk 0:00:47]} 28. Re3 {[%clk 0:02:09]}  Qd4 {[%clk 0:00:26]} 29. Rxd3 {[%clk 0:02:08]}  Qf6 {[%clk 0:00:08]} 30. a7 {[%clk 0:01:54]}  h5 {[%clk 0:00:03]} 31. Rd6 {[%clk 0:01:49]}  Qb2 {[%clk 0:00:03]} 32. Rxg6 {[%clk 0:01:46]} 1-0


[Site "https://www.chess.com"]

[Event "Titled Tuesday Blitz November 01 Early 2022"]
[White "Toelly, Michael"]
[Black "Yurasova, Daria"]
[WhiteFideId "1625330"]
[BlackFideId "34146919"]
[WhiteElo "2090"]
[BlackElo "2044"]
[Result "1-0"]
[Round "03"]
[TimeControl "180+1"]
[Date "2022.11.02"]
[WhiteClock "0:02:05"]
[BlackClock "0:00:10"]

1. e4 {[%clk 0:03:00]}  e5 {[%clk 0:02:59]} 2. Nf3 {[%clk 0:03:00]}  Nc6 {[%clk 0:02:59]} 3. Bb5 {[%clk 0:03:00]}  a6 {[%clk 0:02:59]} 4. Ba4 {[%clk 0:03:00]}  Nf6 {[%clk 0:02:59]} 5. O-O {[%clk 0:03:00]}  b5 {[%clk 0:03:00]} 6. Bb3 {[%clk 0:03:01]}  Bb7 {[%clk 0:03:00]} 7. Re1 {[%clk 0:03:00]}  Be7 {[%clk 0:02:56]} 8. c3 {[%clk 0:03:00]}  O-O {[%clk 0:02:55]} 9. d4 {[%clk 0:03:00]}  d6 {[%clk 0:02:55]} 10. Bg5 {[%clk 0:02:54]}  h6 {[%clk 0:02:52]} 11. Bh4 {[%clk 0:02:54]}  Re8 {[%clk 0:02:45]} 12. Nbd2 {[%clk 0:02:52]}  Qd7 {[%clk 0:02:24]} 13. Nf1 {[%clk 0:02:50]}  Rad8 {[%clk 0:02:24]} 14. a4 {[%clk 0:02:48]}  Nh7 {[%clk 0:02:13]} 15. Bxe7 {[%clk 0:02:47]}  Qxe7 {[%clk 0:02:12]} 16. axb5 {[%clk 0:02:45]}  axb5 {[%clk 0:02:12]} 17. Qd3 {[%clk 0:02:44]}  b4 {[%clk 0:01:54]} 18. Ng3 {[%clk 0:02:39]}  bxc3 {[%clk 0:01:46]} 19. bxc3 {[%clk 0:02:39]}  Ra8 {[%clk 0:01:34]} 20. Nf5 {[%clk 0:02:25]}  Qd7 {[%clk 0:01:24]} 21. Ba4 {[%clk 0:02:23]}  Rxa4 {[%clk 0:01:05]} 22. Rxa4 {[%clk 0:02:22]}  Nxd4 {[%clk 0:01:06]} 23. Rb4 {[%clk 0:02:12]}  Nxf3+ {[%clk 0:00:12]} 24. Qxf3 {[%clk 0:02:12]}  Ba8 {[%clk 0:00:13]} 25. Qg4 {[%clk 0:02:07]}  Ng5 {[%clk 0:00:10]} 26. Nxh6+ {[%clk 0:02:05]} 1-0


[Site "https://www.chess.com"]